bitfinex-derivatives/quotes_BTCF0:USTF0_20241210
["timestamp","ask_amount","ask_price","bid_price","bid_amount"]
[1733834772101,9.622e-05,97172.0,97170.0,0.051432]
[1733834772508,9.622e-05,97172.0,97164.0,0.001]
[1733834772711,9.622e-05,97172.0,97165.0,0.03478603]
[1733834772910,0.051435,97165.0,97164.0,0.185319]
[1733834773208,0.051435,97165.0,97161.0,0.36090722]
[1733834773209,0.3608,97168.0,97161.0,0.36090722]
[1733834773417,0.051434,97167.0,97162.0,0.03477498]
[1733834773606,0.051434,97167.0,97163.0,0.03477244]
[1733834773914,0.051434,97167.0,97164.0,0.03477244]
[1733834774213,0.051434,97167.0,97164.0,0.001]
[1733834774616,0.051435,97166.0,97164.0,0.001]
[1733834774816,0.051435,97166.0,97161.0,0.36290722]
[1733834775109,0.051435,97166.0,97161.0,0.36090722]
[1733834775311,0.051435,97166.0,97164.0,0.001]
[1733834776215,0.051435,97166.0,97161.0,0.00210722]
[1733834776422,9.622e-05,97172.0,97163.0,0.3608]
[1733834776626,9.622e-05,97172.0,97170.0,0.051432]
[1733834776814,9.622e-05,97172.0,97171.0,0.03469383]
[1733834777316,0.3608,97199.0,97171.0,0.39539964]
[1733834777507,0.051421,97193.0,97187.0,0.051423]
[1733834777814,0.051421,97193.0,97182.0,0.3608]
[1733834778008,0.051421,97193.0,97191.0,0.051421]
[1733834778415,0.3608,97199.0,97182.0,0.3608]
[1733834778416,0.051425,97184.0,97182.0,0.3608]
[1733834779110,0.051431,97173.0,97172.0,0.0873]
[1733834779813,0.15251678,97182.0,97163.0,0.18401493]
[1733834780017,0.3608,97183.0,97164.0,0.03463397]
[1733834780018,0.051435,97166.0,97164.0,0.03463397]
[1733834780221,0.51331678,97173.0,97158.0,0.18401493]
[1733834780524,0.412237,97162.0,97158.0,0.18401493]
[1733834780704,0.051437,97162.0,97155.0,0.18401493]
[1733834781715,0.051437,97162.0,97151.0,0.18401493]
[1733834781932,0.3608,97162.0,97149.0,0.18401493]
[1733834782110,0.412243,97151.0,97141.0,0.30669155]
[1733834782312,0.412243,97151.0,97139.0,0.30669155]
[1733834782732,0.412243,97151.0,97105.0,0.00052]
[1733834782733,0.051466,97106.0,97105.0,0.00052]
[1733834782922,0.412264,97111.0,97105.0,0.03473309]
[1733834783125,0.412264,97111.0,97106.0,0.03473309]
[1733834783320,0.3608,97114.0,97105.0,0.05155085]
[1733834783622,8.827e-05,97113.0,97105.0,8.385e-05]
[1733834784312,8.827e-05,97113.0,97107.0,0.051466]
[1733834785421,8.827e-05,97113.0,97105.0,8.385e-05]
[1733834785721,8.827e-05,97113.0,97112.0,0.3608]
[1733834787122,0.051465,97109.0,97107.0,0.002]
[1733834787617,0.051466,97108.0,97105.0,0.00208385]
[1733834788425,0.051466,97108.0,97107.0,0.001]
[1733834788626,8.827e-05,97113.0,97107.0,0.001]
[1733834788816,0.05155127,97113.0,97107.0,0.001]
[1733834789119,0.051463,97112.0,97107.0,0.001]
[1733834789536,0.01040606,97113.0,97107.0,0.001]
[1733834789725,0.15251678,97130.0,97117.0,0.05146]
[1733834789920,0.15251678,97130.0,97120.0,0.3608]
[1733834790127,0.051456,97126.0,97120.0,0.3608]
[1733834790311,0.051456,97125.0,97120.0,0.051459]
[1733834790520,0.051457,97124.0,97120.0,0.051459]
[1733834790718,0.3608,97129.0,97111.0,0.3608]
[1733834791015,0.051463,97112.0,97111.0,0.3608]
[1733834791821,0.05146,97118.0,97111.0,0.3608]
[1733834792023,0.00052001,97121.0,97111.0,0.3608]
[1733834792224,0.00052001,97121.0,97120.0,0.051459]
[1733834792521,0.00010083,97123.0,97122.0,0.051458]
[1733834793616,0.051458,97122.0,97120.0,0.042]
[1733834794011,0.3608,97129.0,97120.0,0.042]
[1733834794220,0.3608,97129.0,97126.0,0.051456]
[1733834794427,0.3608,97137.0,97120.0,0.0443]
[1733834794615,0.02063576,97147.0,97136.0,0.3608]
[1733834794828,0.02063576,97147.0,97146.0,0.051445]
[1733834795525,0.02063576,97147.0,97144.0,0.3608]
[1733834795526,0.051445,97146.0,97144.0,0.3608]
[1733834795915,0.051442,97152.0,97144.0,0.3608]
[1733834796120,0.051442,97152.0,97147.0,0.051445]
[1733834796309,0.051442,97152.0,97148.0,0.051444]
[1733834796519,0.051442,97152.0,97144.0,0.3608]
[1733834796520,0.01057196,97155.0,97144.0,0.3608]
[1733834796724,0.01057196,97155.0,97152.0,0.051442]
[1733834796923,0.051444,97149.0,97146.0,0.051445]
[1733834797518,0.051445,97146.0,97145.0,0.0441]
[1733834797717,0.051444,97148.0,97146.0,0.001]
[1733834798017,0.3608,97151.0,97146.0,0.001]
[1733834798220,0.3608,97151.0,97146.0,0.002]
[1733834798717,0.3608,97151.0,97146.0,0.001]
[1733834799322,0.3608,97151.0,97150.0,0.051443]
[1733834799525,0.3608,97151.0,97146.0,0.002]
[1733834799824,0.01057196,97155.0,97146.0,0.002]
[1733834800616,0.01057196,97155.0,97150.0,0.051443]
[1733834801018,0.01057196,97155.0,97146.0,0.002]
[1733834801220,0.3608,97147.0,97146.0,0.002]
[1733834801622,0.3608,97147.0,97146.0,0.001]
[1733834801827,0.051457,97125.0,97122.0,0.0442]
[1733834802024,0.3608,97147.0,97122.0,0.0442]
[1733834802025,0.3608,97127.0,97123.0,0.03446609]
[1733834802326,0.3608,97127.0,97117.0,0.051461]
[1733834802327,0.051457,97125.0,97117.0,0.051461]
[1733834802624,0.3608,97127.0,97122.0,0.051458]
[1733834803218,0.051456,97126.0,97116.0,0.051461]
[1733834803416,0.051456,97126.0,97117.0,0.051461]
[1733834803625,0.051456,97126.0,97111.0,0.3608]
[1733834804216,0.051457,97124.0,97111.0,0.3608]
[1733834804418,0.001,97126.0,97111.0,0.3608]
[1733834804913,0.001,97126.0,97122.0,0.001]
[1733834805121,0.051456,97125.0,97122.0,0.001]
[1733834805418,0.001,97126.0,97121.0,0.051458]
[1733834805928,0.001,97126.0,97123.0,0.051457]
[1733834806129,0.09078843,97146.0,97125.0,0.051456]
[1733834806429,0.4929053,97147.0,97140.0,0.3608]
[1733834806615,0.37184858,97147.0,97140.0,0.051448]
[1733834806926,0.15251678,97150.0,97140.0,0.051448]
[1733834807234,0.15251678,97150.0,97138.0,0.3608]
[1733834807425,0.051446,97145.0,97131.0,0.0466]
[1733834807625,0.051446,97145.0,97132.0,0.0452]
[1733834808025,0.051446,97145.0,97138.0,0.051449]
[1733834808324,0.3608,97146.0,97132.0,0.0452]
[1733834808528,0.051449,97140.0,97133.0,0.051452]
[1733834809032,0.05145,97137.0,97134.0,0.03463103]
[1733834809222,0.05145,97137.0,97135.0,0.03463103]
[1733834809432,0.05145,97137.0,97136.0,0.03463103]
[1733834809823,0.001,97145.0,97132.0,0.001]
[1733834810030,0.051448,97142.0,97132.0,0.001]
[1733834810327,0.051449,97139.0,97132.0,0.052453]
[1733834811229,0.3608,97146.0,97132.0,0.001]
[1733834811430,0.051452,97133.0,97132.0,0.001]
[1733834812332,0.3608,97134.0,97133.0,0.001]
[1733834812634,0.3608,97134.0,97119.0,0.0428]
[1733834812635,0.051459,97120.0,97119.0,0.0428]
[1733834812935,0.412259,97120.0,97119.0,0.0428]
[1733834813437,0.3608,97120.0,97105.0,8.385e-05]
[1733834813631,0.3608,97120.0,97107.0,0.18449052]
[1733834813836,0.12114421,97130.0,97120.0,0.051459]
[1733834813837,0.3608,97126.0,97120.0,0.051459]
[1733834814035,0.3608,97126.0,97114.0,0.3608]
[1733834814036,0.3608,97126.0,97121.0,0.0448]
[1733834814420,0.3608,97126.0,97122.0,0.051458]
[1733834815146,0.3618,97126.0,97122.0,0.051458]
[1733834815521,0.413256,97126.0,97122.0,0.051458]
[1733834815927,0.415256,97126.0,97122.0,0.052458]
[1733834816929,0.3638,97126.0,97125.0,0.051456]
[1733834817130,0.09085816,97148.0,97125.0,0.44692869]
[1733834817328,0.48194421,97153.0,97150.0,0.051443]
[1733834817329,0.09090729,97151.0,97150.0,0.051443]
[1733834817530,0.051443,97151.0,97150.0,0.051443]
[1733834817733,0.051443,97151.0,97146.0,0.051445]
[1733834817939,0.051444,97148.0,97147.0,0.0467]
[1733834818237,0.051448,97141.0,97139.0,0.0466]
[1733834818737,0.051448,97141.0,97137.0,0.05145]
[1733834818738,0.051448,97141.0,97140.0,0.03469602]
[1733834819128,0.051448,97141.0,97137.0,0.05145]
[1733834819440,0.3608,97145.0,97132.0,0.0456]
[1733834819632,0.3608,97145.0,97133.0,0.03470481]
[1733834819831,0.3608,97145.0,97134.0,0.03470481]
[1733834819832,0.05145,97137.0,97134.0,0.03470481]
[1733834820035,0.051452,97133.0,97132.0,0.0456]
[1733834820336,0.051452,97133.0,97110.0,0.36950376]
[1733834820337,0.3608,97137.0,97116.0,0.18456474]
[1733834820636,0.09091388,97138.0,97104.0,0.3074865]
[1733834820637,0.051466,97106.0,97104.0,0.18456474]
[1733834820836,0.051466,97106.0,97100.0,0.46136]
[1733834821043,0.051466,97106.0,97100.0,0.10056]
[1733834821338,0.3608,97107.0,97100.0,0.1]
[1733834821539,0.3608,97107.0,97105.0,0.05155085]
[1733834822836,0.051466,97106.0,97105.0,8.385e-05]
[1733834823438,0.3608,97112.0,97105.0,8.385e-05]
[1733834823742,0.09091388,97111.0,97105.0,8.385e-05]
[1733834823935,0.051472,97106.0,97105.0,8.385e-05]
[1733834824637,0.051472,97106.0,97100.0,0.06373153]
[1733834824944,0.412274,97101.0,97100.0,0.06373153]
[1733834825734,0.41236567,97101.0,97100.0,0.06373153]
[1733834826136,0.41236567,97101.0,97100.0,0.06473153]
[1733834827033,0.4225123,97101.0,97100.0,0.06473153]
[1733834827639,0.36089167,97101.0,97100.0,0.06473153]
[1733834827843,0.36089167,97101.0,97100.0,0.11620653]
[1733834829036,0.36089167,97101.0,97100.0,0.11520653]
[1733834829240,0.36089167,97101.0,97100.0,0.11620653]
[1733834830233,9.167e-05,97101.0,97100.0,0.11620653]
[1733834831642,9.167e-05,97101.0,97100.0,0.06473153]
[1733834831643,0.05156567,97101.0,97100.0,0.06473153]
[1733834832143,0.05156567,97101.0,97100.0,0.09915805]
[1733834832331,9.167e-05,97101.0,97100.0,0.09915805]
[1733834832639,9.167e-05,97101.0,97100.0,0.47700653]
[1733834832835,9.167e-05,97101.0,97100.0,0.11620653]
[1733834833141,0.24322008,97115.0,97100.0,0.06473153]
[1733834833336,0.24322008,97115.0,97114.0,0.051467]
[1733834833533,0.0907033,97115.0,97114.0,0.051467]
[1733834833842,0.051468,97113.0,97112.0,0.051468]
[1733834834541,0.36091229,97114.0,97101.0,0.0452]
[1733834834741,0.3608,97106.0,97101.0,0.0452]
[1733834835044,0.051474,97102.0,97101.0,0.0452]
[1733834835742,0.051474,97102.0,97101.0,0.07990049]
[1733834836044,0.051474,97102.0,97101.0,0.0452]
[1733834836542,0.3608,97106.0,97100.0,0.06373153]
[1733834836543,0.051474,97101.0,97100.0,0.06373153]
[1733834839145,0.3608,97102.0,97100.0,0.06373153]
[1733834839346,0.3608,97102.0,97100.0,0.11620653]
[1733834839538,0.00052001,97106.0,97101.0,0.07892194]
[1733834839742,0.36132001,97118.0,97110.0,0.051469]
[1733834839944,0.36132001,97118.0,97111.0,0.0449]
[1733834840237,0.3608,97118.0,97112.0,0.051468]
[1733834840436,0.36132001,97118.0,97112.0,0.051468]
[1733834840832,0.3608,97118.0,97112.0,0.051468]
[1733834841039,0.3608,97118.0,97113.0,0.03464971]
[1733834842042,0.02021376,97126.0,97113.0,0.39547515]
[1733834842238,0.15251678,97130.0,97113.0,0.39547515]
[1733834842440,0.01006611,97132.0,97130.0,0.051459]
[1733834842633,0.21169094,97136.0,97135.0,0.051456]
[1733834843043,0.02077606,97141.0,97138.0,0.051455]
[1733834843443,0.00011272,97140.0,97138.0,0.051455]
[1733834844348,0.051456,97137.0,97135.0,0.009]
[1733834844938,0.3608,97136.0,97135.0,0.009]
[1733834845160,0.051466,97116.0,97109.0,0.05147]
[1733834845543,0.3608,97118.0,97103.0,0.051473]
[1733834845736,0.3608,97118.0,97101.0,0.0458]
[1733834845938,0.3608,97118.0,97103.0,0.03455475]
[1733834845939,0.051472,97106.0,97103.0,0.03455475]
[1733834846540,0.3608,97108.0,97106.0,0.051471]
[1733834846735,0.15251678,97113.0,97106.0,0.051471]
[1733834847136,0.15251678,97113.0,97107.0,0.03455475]
[1733834847550,0.15251678,97113.0,97110.0,0.051469]
[1733834848247,0.15251678,97113.0,97111.0,0.03476524]
[1733834848442,0.15251678,97113.0,97103.0,0.004]
[1733834848443,0.051466,97117.0,97104.0,0.051472]
[1733834848648,0.3608,97118.0,97105.0,0.03477248]
[1733834848848,0.3608,97118.0,97103.0,0.004]
[1733834848849,0.3608,97118.0,97106.0,0.03477248]
[1733834849049,0.004,97113.0,97106.0,0.03477248]
[1733834849247,0.004,97113.0,97112.0,0.051468]
[1733834849762,0.3608,97118.0,97112.0,0.03477248]
[1733834849943,0.051468,97114.0,97113.0,0.03477248]
[1733834850150,0.3628,97118.0,97113.0,0.03477248]
[1733834850151,0.36340001,97118.0,97113.0,0.03477248]
[1733834850345,0.3628,97118.0,97113.0,0.051468]
[1733834850651,0.3628,97118.0,97104.0,0.3608]
[1733834850652,0.3628,97118.0,97114.0,0.051467]
[1733834850952,0.3628,97118.0,97116.0,0.051466]
[1733834852249,0.3628,97118.0,97104.0,0.3608]
[1733834852250,0.002,97113.0,97112.0,0.051468]
[1733834852442,0.002,97113.0,97112.0,0.44699808]
[1733834852850,0.051461,97127.0,97124.0,0.051462]
[1733834853440,0.051461,97127.0,97125.0,0.051461]
[1733834855037,0.051461,97127.0,97124.0,0.001]
[1733834855038,0.03044143,97129.0,97127.0,0.05146]
[1733834855243,0.02040332,97129.0,97127.0,0.05146]
[1733834855646,0.09073634,97136.0,97134.0,0.051456]
[1733834856053,0.09073634,97136.0,97131.0,0.3608]
[1733834856054,0.05156672,97140.0,97136.0,0.051456]
[1733834856347,0.00011272,97140.0,97139.0,0.051454]
[1733834857258,0.00011272,97140.0,97139.0,0.44691067]
[1733834857845,0.00511272,97140.0,97139.0,0.44691067]
[1733834858353,0.00511272,97140.0,97139.0,0.412254]
[1733834858558,0.00011272,97140.0,97139.0,0.412254]
[1733834858859,0.00611272,97140.0,97139.0,0.44677701]
[1733834859245,0.00611272,97140.0,97139.0,0.412254]
[1733834860358,0.00611272,97140.0,97139.0,0.413254]
[1733834860863,0.00611272,97140.0,97139.0,0.44773686]
[1733834861647,0.00611272,97140.0,97139.0,0.413254]
[1733834861953,0.00611272,97140.0,97139.0,0.44769563]
[1733834862164,0.00611272,97140.0,97139.0,0.41336491]
[1733834862350,0.3608,97158.0,97157.0,0.051445]
[1733834864258,0.3608,97158.0,97157.0,0.052445]
[1733834864557,0.15251678,97160.0,97159.0,0.051444]
[1733834864957,8.054e-05,97162.0,97157.0,0.002]
[1733834865162,8.054e-05,97162.0,97161.0,0.051442]
[1733834865760,0.051444,97159.0,97157.0,0.002]
[1733834865955,8.054e-05,97162.0,97159.0,0.004]
[1733834866267,0.051442,97161.0,97159.0,0.008]
[1733834866859,0.051442,97161.0,97145.0,0.051451]
[1733834866860,8.054e-05,97162.0,97139.0,0.00011091]
[1733834867060,0.3608,97145.0,97141.0,0.051453]
[1733834867458,0.3608,97145.0,97142.0,0.03456969]
[1733834867762,0.051454,97140.0,97139.0,0.00011091]
[1733834867949,0.051454,97140.0,97114.0,0.051467]
[1733834867950,0.051462,97125.0,97114.0,0.051467]
[1733834868151,0.3608,97120.0,97115.0,0.0345752]
[1733834868358,0.3608,97120.0,97116.0,0.0345752]
[1733834868658,0.3608,97120.0,97117.0,0.0345752]
[1733834868861,0.3608,97120.0,97118.0,0.0345752]
[1733834869055,0.412264,97120.0,97119.0,0.0345752]
[1733834869764,0.414264,97120.0,97119.0,0.0345752]
[1733834870766,0.420264,97120.0,97119.0,0.0355752]
[1733834871160,0.422264,97120.0,97119.0,0.0355752]
[1733834871364,0.416264,97120.0,97119.0,0.0345752]
[1733834871667,0.422264,97120.0,97119.0,0.0355752]
[1733834872363,0.3708,97120.0,97119.0,0.0355752]
[1733834873165,0.3708,97120.0,97119.0,0.001]
[1733834874166,0.3678,97120.0,97119.0,0.001]
[1733834874759,0.3648,97120.0,97117.0,9.306e-05]
[1733834874957,0.3678,97120.0,97119.0,0.001]
[1733834875762,0.3678,97120.0,97119.0,0.03558715]
[1733834876065,0.051465,97119.0,97117.0,0.00109306]
[1733834877157,0.051465,97119.0,97117.0,1.393e-05]
[1733834878261,0.53065774,97120.0,97100.0,0.06384144]
[1733834878464,0.3608,97101.0,97100.0,0.06384144]
[1733834879866,0.51331678,97110.0,97100.0,0.06384144]
[1733834880064,0.51331678,97110.0,97108.0,0.05147]
[1733834880274,0.3608,97110.0,97108.0,0.05147]
[1733834880567,0.051472,97106.0,97102.0,0.051474]
[1733834880759,0.37094803,97110.0,97101.0,0.0888]
[1733834880959,0.3608,97102.0,97101.0,0.0435]
[1733834881166,0.3608,97102.0,97100.0,0.06384144]
[1733834882267,0.05155955,97101.0,97100.0,0.06384144]
[1733834882478,0.05155955,97101.0,97067.0,0.18458736]
[1733834882479,0.051489,97074.0,97067.0,0.18458736]
[1733834882681,0.412292,97068.0,97062.0,0.05578828]
[1733834882971,0.412292,97068.0,97062.0,0.0453]
[1733834882972,0.051493,97065.0,97062.0,0.0453]
[1733834883371,0.051494,97064.0,97062.0,0.0453]
[1733834883966,0.051493,97067.0,97054.0,0.0468]
[1733834884279,0.051501,97051.0,97046.0,0.044]
[1733834884569,0.3608,97047.0,97036.0,0.051508]
[1733834884770,0.3608,97047.0,97037.0,0.044]
[1733834884971,0.00052001,97055.0,97054.0,0.051499]
[1733834885274,0.3608,97056.0,97054.0,0.051499]
[1733834885475,0.3608,97056.0,97047.0,0.00012527]
[1733834885772,0.3608,97056.0,97049.0,0.051502]
[1733834886166,0.3608,97056.0,97050.0,0.03493353]
[1733834886368,0.3608,97056.0,97051.0,0.03493353]
[1733834886572,0.3608,97056.0,97047.0,0.00012527]
[1733834886573,0.3608,97056.0,97052.0,0.03493353]
[1733834886767,0.3608,97056.0,97047.0,0.00012527]
[1733834887080,0.051502,97049.0,97048.0,0.03488795]
[1733834887577,0.412302,97049.0,97048.0,0.03488795]
[1733834888664,0.412302,97049.0,97048.0,0.03588795]
[1733834892580,0.41241491,97049.0,97048.0,0.001]
[1733834892774,0.41241491,97049.0,97048.0,0.03591181]
[1733834892970,0.41241491,97049.0,97048.0,0.001]
[1733834893276,0.41241491,97049.0,97048.0,0.03590963]
[1733834893778,0.41241491,97049.0,97048.0,0.0155481]
[1733834894077,0.41941491,97049.0,97048.0,0.0165481]
[1733834894271,0.42141491,97049.0,97048.0,0.0165481]
[1733834894683,0.42141491,97049.0,97048.0,0.001]
[1733834897487,0.42141491,97049.0,97024.0,0.0883]
[1733834897488,0.36991291,97049.0,97024.0,0.0883]
[1733834897785,0.051514,97026.0,97024.0,0.0883]
[1733834897971,0.3608,97031.0,97024.0,0.0883]
[1733834898571,0.3608,97031.0,97024.0,0.139815]
[1733834898782,0.3608,97031.0,97024.0,0.142815]
[1733834898975,0.3608,97031.0,97025.0,0.05161178]
[1733834899687,0.3608,97031.0,97026.0,0.051514]
[1733834900584,0.37130165,97031.0,97026.0,0.051514]
[1733834901484,0.37130165,97031.0,97026.0,0.054514]
[1733834901683,0.37130165,97031.0,97026.0,0.057514]
[1733834902074,0.3608,97039.0,97029.0,0.3608]
[1733834902272,0.3608,97039.0,97032.0,0.051511]
[1733834902683,0.3608,97039.0,97030.0,0.3608]
[1733834902684,0.051507,97039.0,97033.0,0.05151]
[1733834902885,0.3608,97047.0,97033.0,0.05151]
[1733834903184,0.10196272,97043.0,97033.0,0.05151]
[1733834903577,0.10196272,97043.0,97030.0,0.3608]
[1733834903578,0.3608,97047.0,97030.0,0.3608]
[1733834903780,0.30943303,97047.0,97030.0,0.46276272]
[1733834903979,0.051504,97045.0,97031.0,0.0341384]
[1733834904178,0.051504,97045.0,97030.0,0.46276272]
[1733834904179,0.051504,97045.0,97043.0,0.051505]
[1733834904382,0.02103303,97047.0,97044.0,0.03417253]
[1733834904682,0.051503,97046.0,97045.0,0.03417253]
[1733834905084,0.412303,97046.0,97030.0,0.002]
[1733834905386,0.051511,97031.0,97030.0,0.002]
[1733834905684,0.051511,97031.0,97030.0,0.03627324]
[1733834907388,0.051511,97031.0,97030.0,0.01371289]
[1733834908285,0.35437309,97036.0,97030.0,0.01371289]
[1733834908596,0.35437309,97036.0,96999.0,0.051528]
[1733834908597,0.051511,97031.0,96999.0,0.051528]
[1733834908890,0.051523,97010.0,96999.0,0.051528]
[1733834909186,0.051523,97010.0,97000.0,0.4608]
[1733834909389,0.051523,97010.0,97001.0,0.051527]
[1733834909595,0.051523,97010.0,97009.0,0.03550031]
[1733834909896,0.051523,97010.0,97009.0,0.00156]
[1733834910985,0.051523,97010.0,97009.0,0.00256]
[1733834911292,0.051527,97001.0,97000.0,0.1]
[1733834911485,0.412327,97001.0,97000.0,0.06045634]
[1733834911788,0.762327,97001.0,97000.0,0.06045634]
[1733834912183,1.0108,97001.0,96935.0,0.3685596]
[1733834912382,1.0108,97001.0,96964.0,0.03390563]
[1733834912383,0.10196272,96973.0,96964.0,0.03390563]
[1733834912592,0.3608,96979.0,96959.0,0.3608]
[1733834912593,0.02105901,96975.0,96971.0,0.051543]
[1733834912892,0.02105901,96975.0,96970.0,0.051544]
[1733834913191,0.02105901,96975.0,96965.0,0.0912]
[1733834913192,0.02105901,96975.0,96971.0,0.03390563]
[1733834913491,0.02105901,96975.0,96967.0,0.051545]
[1733834913681,0.02105901,96975.0,96965.0,0.0912]
[1733834913682,0.02105901,96975.0,96969.0,0.051544]
[1733834914078,0.42314435,96979.0,96970.0,0.051544]
[1733834914381,0.37100434,96979.0,96975.0,0.051541]
[1733834914591,0.37100434,96979.0,96977.0,0.05154]
[1733834914893,0.00052001,96996.0,96978.0,0.39470563]
[1733834915092,0.00052001,96996.0,96994.0,0.051531]
[1733834915391,0.0104338,96996.0,96995.0,0.0915]
[1733834915699,0.3608,96998.0,96978.0,0.3608]
[1733834915700,0.051533,96991.0,96982.0,0.051537]
[1733834915893,0.15316648,96992.0,96983.0,0.08170563]
[1733834916086,0.15316648,96992.0,96983.0,0.0478]
[1733834916087,0.051536,96985.0,96983.0,0.0478]
[1733834916287,0.412336,96985.0,96983.0,0.0478]
[1733834916982,0.412336,96985.0,96984.0,0.03390563]
[1733834917183,0.34151268,96985.0,96984.0,0.03390563]
[1733834917384,0.39304868,96985.0,96984.0,0.03366961]
[1733834917581,0.39304868,96985.0,96977.0,0.03390563]
[1733834917582,0.34151268,96985.0,96977.0,0.03390563]
[1733834917788,0.051544,96969.0,96968.0,0.03390563]
[1733834918194,0.3608,96974.0,96968.0,0.03390563]
[1733834918491,0.051544,96970.0,96969.0,0.03390563]
[1733834918796,0.30284051,96974.0,96967.0,0.0932]
[1733834918797,0.051545,96969.0,96967.0,0.0932]
[1733834919093,0.054545,96969.0,96968.0,0.0339049]
[1733834919296,0.054545,96969.0,96967.0,0.0932]
[1733834919590,0.054545,96969.0,96968.0,0.0339049]
[1733834919995,0.003,96969.0,96963.0,0.3608]
[1733834920205,0.051554,96951.0,96945.0,0.36089066]
[1733834920696,0.051555,96950.0,96945.0,9.066e-05]
[1733834921198,0.051555,96950.0,96946.0,0.0339049]
[1733834921495,0.051555,96949.0,96945.0,9.066e-05]
[1733834921996,0.051557,96946.0,96945.0,0.00209066]
[1733834922388,0.3608,96954.0,96945.0,0.00209066]
[1733834922595,0.37101329,96954.0,96945.0,0.00209066]
[1733834922795,0.051556,96948.0,96945.0,0.00309066]
[1733834923096,0.3608,96946.0,96945.0,0.00309066]
[1733834923599,0.3608,96946.0,96945.0,0.00209066]
[1733834924198,0.3608,96946.0,96945.0,0.00109066]
[1733834924498,0.36292633,96946.0,96945.0,0.00109066]
[1733834925702,0.36092633,96946.0,96945.0,0.00109066]
[1733834925888,0.36292633,96946.0,96945.0,9.066e-05]
[1733834926195,0.36292633,96946.0,96945.0,0.00109066]
[1733834926196,0.36992633,96946.0,96945.0,0.00109066]
[1733834926694,0.37092633,96946.0,96945.0,0.00109066]
[1733834926895,0.01012633,96946.0,96945.0,0.00109066]
[1733834927902,0.01112633,96946.0,96945.0,0.00109066]
[1733834928300,0.01021329,96954.0,96945.0,0.00109066]
[1733834928301,0.051553,96953.0,96946.0,0.051556]
[1733834928494,0.02022638,96951.0,96946.0,0.051556]
[1733834928803,0.02022638,96951.0,96949.0,0.051555]
[1733834929309,7.668e-05,96950.0,96949.0,0.051555]
[1733834930402,7.668e-05,96950.0,96949.0,0.052555]
[1733834930792,7.668e-05,96950.0,96949.0,0.051555]
[1733834930998,0.00907668,96950.0,96949.0,0.052555]
[1733834931399,0.01207668,96950.0,96949.0,0.052555]
[1733834933710,0.02259353,96950.0,96949.0,0.052555]
[1733834935214,0.10212202,96960.0,96949.0,0.052555]
[1733834935419,0.09059292,96979.0,96949.0,0.052555]
[1733834935420,0.10212202,96970.0,96956.0,0.3608]
[1733834935604,0.10212202,96970.0,96957.0,0.05155]
[1733834935908,0.10212202,96970.0,96957.0,0.0467]
[1733834936103,0.38155201,96962.0,96949.0,0.001]
[1733834936305,0.10212202,96959.0,96952.0,0.051553]
[1733834936499,0.10212202,96959.0,96949.0,0.001]
[1733834936500,0.051553,96953.0,96949.0,0.001]
[1733834936704,0.051554,96950.0,96949.0,0.001]
[1733834937109,0.051555,96949.0,96948.0,0.0436]
[1733834938121,0.051573,96915.0,96914.0,0.18458736]
[1733834938329,0.3608,96918.0,96900.0,0.1]
[1733834938618,0.3608,96918.0,96901.0,0.0442]
[1733834938619,0.051574,96914.0,96901.0,0.0442]
[1733834938813,0.10212202,96916.0,96901.0,0.0442]
[1733834939010,0.051577,96908.0,96901.0,0.0442]
[1733834939610,0.11246102,96916.0,96900.0,0.1]
[1733834939611,0.010339,96916.0,96904.0,8.159e-05]
[1733834939820,0.051576,96911.0,96907.0,0.0442]
[1733834940710,0.051576,96911.0,96906.0,0.00497]
[1733834941415,0.02024907,96908.0,96906.0,0.00497]
[1733834942318,0.412377,96907.0,96906.0,0.00497]
[1733834942817,0.412377,96907.0,96906.0,0.00197]
[1733834943310,0.37101649,96907.0,96906.0,0.00197]
[1733834943708,0.001,96911.0,96906.0,0.36277]
[1733834943904,0.10212202,96930.0,96910.0,0.3608]
[1733834944106,0.10212202,96930.0,96928.0,0.3608]
[1733834944317,0.46292202,96938.0,96927.0,0.3608]
[1733834944522,0.10212202,96938.0,96936.0,0.051561]
[1733834944812,0.36132001,96951.0,96937.0,0.051561]
[1733834944813,0.10212202,96946.0,96937.0,0.051561]
[1733834945004,0.01044744,96946.0,96939.0,0.3608]
[1733834945210,8.094e-05,96953.0,96939.0,0.3608]
[1733834945403,8.094e-05,96953.0,96951.0,0.412354]
[1733834947308,8.094e-05,96953.0,96951.0,0.421354]
[1733834947924,0.00108094,96953.0,96951.0,0.412354]
[1733834949123,0.24380207,96970.0,96951.0,0.412354]
[1733834949124,0.09059292,96970.0,96951.0,0.412354]
[1733834949313,0.01012298,96970.0,96969.0,0.051544]
[1733834949517,0.09059292,96974.0,96970.0,0.051543]
[1733834949715,0.02047321,96971.0,96969.0,0.051544]
[1733834950118,9.393e-05,96971.0,96970.0,0.0442]
[1733834950335,9.393e-05,96971.0,96970.0,0.095743]
[1733834950639,0.051544,96970.0,96968.0,0.3608]
[1733834951034,9.393e-05,96971.0,96968.0,0.3608]
[1733834951439,0.00309393,96971.0,96968.0,0.3608]
[1733834951644,0.00309393,96971.0,96970.0,0.001]
[1733834952940,0.29533507,96990.0,96980.0,0.051538]
[1733834953134,0.20474215,96990.0,96980.0,0.051538]
[1733834953535,0.02058872,96981.0,96977.0,0.3608]
[1733834953739,0.02058872,96981.0,96980.0,0.051538]
[1733834953936,0.15320915,96990.0,96977.0,0.3608]
[1733834954240,0.15320915,96990.0,96987.0,0.3608]
[1733834954444,0.09059292,97000.0,96987.0,0.3608]
[1733834954445,0.051529,96998.0,96987.0,0.3608]
[1733834954630,0.051529,96998.0,96988.0,0.0433]
[1733834954837,0.05153,96997.0,96988.0,0.094834]
[1733834955134,7.574e-05,96996.0,96991.0,0.051532]
[1733834955339,0.02062585,96992.0,96991.0,0.051532]
[1733834955536,0.02062585,96992.0,96988.0,0.0433]
[1733834955537,7.574e-05,96996.0,96994.0,0.051531]
[1733834955746,7.574e-05,96996.0,96995.0,0.3608]
[1733834955934,0.02082949,96996.0,96995.0,0.3608]